bitfinex/quotes_ETHUSD_20250107
["timestamp","ask_amount","ask_price","bid_price","bid_amount"]
[1736264770503,8.0,3440.1,3435.6,2.91069]
[1736264770707,0.39804525,3440.2,3437.1,2.0]
[1736264770936,0.71648145,3441.4,3437.9,2.0]
[1736264771118,0.30186947,3440.0,3436.6,3.5284]
[1736264771317,8.21233798,3438.7,3435.7,2.91055]
[1736264771506,8.21233798,3438.7,3435.4,1.92376947]
[1736264771507,8.21233798,3438.7,3435.4,1.6219]
[1736264771708,0.8212338,3438.6,3435.4,1.6219]
[1736264771908,2.90822,3438.6,3435.9,2.91039]
[1736264772109,8.21233798,3439.1,3435.4,1.6219]
[1736264772304,8.21233798,3439.1,3434.2,2.0]
[1736264772305,8.21233798,3438.1,3434.2,1.6219]
[1736264772609,0.0075,3437.0,3434.6,2.0]
[1736264772819,0.0075,3437.0,3434.7,0.02908583]
[1736264773018,8.21233798,3438.0,3434.8,0.02908982]
[1736264773244,2.90997,3436.5,3433.3,2.91264]
[1736264773460,2.90908,3437.6,3433.2,4.59652]
[1736264773669,2.90812,3438.7,3433.9,1.6235]
[1736264773847,2.90812,3438.7,3434.7,2.0]
[1736264774028,2.90895,3437.7,3436.4,0.0075]
[1736264774228,1.6441,3439.6,3436.4,0.0075]
[1736264774565,1.6441,3439.6,3436.5,1.5238]
[1736264774865,8.21233798,3438.5,3435.4,2.91086]
[1736264775014,2.908,3438.8,3434.9,1.5238]
[1736264775217,0.16441,3439.5,3435.5,3.0]
[1736264775433,0.16441,3439.5,3436.2,2.91018]
[1736264775628,0.16441,3439.5,3435.3,0.82752751]
[1736264775629,1.5443,3441.8,3437.9,1.5571]
[1736264775847,1.5443,3441.8,3438.5,0.0075]
[1736264776063,1.5443,3441.8,3438.5,0.02905823]
[1736264776216,1.5443,3441.8,3439.5,3.0]
[1736264776439,1.583,3443.2,3439.6,38.02906129]
[1736264776641,0.041806,3443.1,3442.8,0.0075]
[1736264776967,0.041806,3443.1,3442.7,0.00822266]
[1736264777383,2.90493,3442.5,3440.1,2.90688]
[1736264777702,2.90567,3441.6,3439.3,1.5936]
[1736264778001,1.5762,3442.4,3439.3,1.5936]
[1736264778002,3.0,3442.1,3439.3,1.5936]
[1736264778140,1.5762,3442.4,3439.4,0.02906301]
[1736264778479,1.5762,3442.4,3438.1,1.5936]
[1736264778480,2.90537,3441.9,3438.1,1.5936]
[1736264778689,2.90536,3442.0,3438.1,1.5936]
[1736264778835,2.90558,3441.7,3439.2,2.9076]
[1736264779041,2.90316,3444.6,3440.5,2.90653]
[1736264779243,2.90477,3442.7,3440.6,35.290653]
[1736264779557,2.90473,3442.7,3439.8,2.90707]
[1736264779756,1.5558,3443.0,3440.0,2.90696]
[1736264779981,0.041806,3443.1,3440.1,37.0290554]
[1736264780190,0.041806,3443.1,3441.7,2.90552]
[1736264780431,0.041806,3443.1,3441.8,0.02903068]
[1736264780578,0.041806,3443.1,3443.0,2.90444]
[1736264780901,0.041806,3443.1,3441.6,1.25]
[1736264781421,2.90491,3442.5,3441.6,1.2425]
[1736264781574,1.5558,3442.9,3441.7,0.02905501]
[1736264781921,0.041806,3443.1,3441.7,0.02905006]
[1736264782077,0.041806,3443.1,3442.9,0.0075]
[1736264782277,0.041806,3443.1,3443.0,6.46194]
[1736264782478,6e-06,3443.1,3443.0,6.46194]
[1736264782788,1.5197,3446.4,3442.9,0.291205]
[1736264783119,2.90166,3446.3,3442.9,0.291205]
[1736264783278,0.25,3445.8,3441.8,1.6467]
[1736264783474,0.25,3445.8,3441.7,2.90552]
[1736264783475,0.0075,3444.3,3440.8,1.6467]
[1736264783674,2.90328,3444.4,3441.8,0.0075]
[1736264783876,2.90275,3445.0,3443.1,0.0075]
[1736264783877,2.9028,3445.0,3443.1,0.0075]
[1736264784070,4.42238,3445.1,3443.2,0.291187]
[1736264784319,1.5197,3445.1,3443.2,0.291187]
[1736264784488,1.5185,3446.2,3443.3,0.02902833]
[1736264784698,2.90148,3446.6,3444.9,0.0075]
[1736264784930,2.90306,3444.7,3441.0,2.0]
[1736264785219,2.90299,3444.8,3442.0,1.6467]
[1736264785419,1.5185,3445.0,3443.2,50.0]
[1736264785723,2.90381,3443.8,3443.2,50.0]
[1736264785920,0.015,3445.4,3443.2,50.0]
[1736264786125,4.42026,3446.2,3445.3,0.0075]
[1736264786433,4.42026,3446.2,3443.2,50.0]
[1736264786434,1.5185,3446.2,3443.2,50.0]
[1736264786577,1.5185,3446.2,3443.3,2.8611894]
[1736264786578,2.90294,3444.8,3443.3,2.8611894]
[1736264786780,0.0075,3444.7,3443.6,2.90386]
[1736264787012,1.5185,3446.2,3443.8,2.90376]
[1736264787178,2.90233,3445.5,3443.3,2.8611894]
[1736264787523,2.90183,3446.1,3443.3,2.8611894]
[1736264787690,2.90287,3444.9,3443.4,2.89022252]
[1736264788021,1.5185,3446.2,3443.4,2.8611894]
[1736264788390,2.90247,3445.4,3443.5,2.90398]
[1736264788597,1.5185,3446.2,3443.6,0.02902639]
[1736264788790,1.5185,3446.2,3443.4,2.8611894]
[1736264788791,0.1468199,3446.7,3443.8,1.598]
[1736264789027,0.1468199,3446.7,3444.9,2.9028]
[1736264789322,0.1468199,3446.7,3443.9,0.18881471]
[1736264789323,0.1468199,3446.7,3445.2,2.9025]
[1736264789526,0.1468199,3446.7,3445.3,35.02901314]
[1736264789737,0.1468199,3446.7,3445.3,35.0]
[1736264789936,0.1468199,3446.7,3443.8,1.598]
[1736264790076,0.1468199,3446.7,3443.9,0.17578]
[1736264790077,2.90174,3446.2,3443.9,0.17578]
[1736264790282,2.90268,3445.1,3443.4,2.8611894]
[1736264790533,1.6009,3446.3,3443.4,2.8611894]
[1736264791026,2.90224,3445.7,3443.8,2.90373]
[1736264791229,0.24549333,3446.2,3442.6,1.6656]
[1736264791380,5.80484,3445.4,3441.5,1.6656]
[1736264791590,2.90415,3443.4,3441.5,1.6656]
[1736264791795,0.565,3443.3,3441.5,1.6656]
[1736264791991,0.015,3443.3,3442.1,2.90514]
[1736264792233,0.0075,3443.3,3441.5,1.6656]
[1736264792417,1.6009,3445.7,3443.5,0.0075]
[1736264792623,0.42918552,3445.6,3443.4,2.90402]
[1736264792820,0.39289845,3445.6,3443.6,1.6656]
[1736264793137,0.03628915,3446.5,3443.6,1.6656]
[1736264793138,0.03627646,3446.3,3443.7,0.02902117]
[1736264793434,2.90186,3446.1,3444.4,2.90323]
[1736264793591,2.90186,3446.1,3443.7,0.02901643]
[1736264793592,0.1468199,3446.7,3446.5,2.90147]
[1736264793795,0.1468199,3446.7,3446.6,0.0075]
[1736264794234,0.18309601,3446.7,3443.6,1.6656]
[1736264794438,2.90274,3445.1,3443.6,1.6656]
[1736264794636,0.03628643,3445.5,3443.6,1.6656]
[1736264794799,2.90227,3445.6,3444.2,0.0075]
[1736264794996,1.6327,3446.8,3444.4,0.0075]
[1736264795338,3.11814068,3447.9,3444.5,3.0]
[1736264795633,0.1815579,3447.9,3445.4,2.90241]
[1736264795804,0.03625673,3447.8,3445.5,1.506]
[1736264796004,0.28625673,3447.8,3444.0,2.90356]
[1736264796204,2.90141,3446.6,3443.8,2.90369]
[1736264796430,2.90195,3446.0,3444.5,2.90316]
[1736264796793,0.03628359,3446.5,3444.6,0.02902051]
[1736264796995,0.03627286,3447.6,3444.9,1.5702]
[1736264797190,2.901,3447.1,3445.0,0.15702]
[1736264797491,2.89982,3448.5,3445.3,3.5575]
[1736264797732,0.00288,3448.6,3446.5,2.89398]
[1736264797947,0.00288,3448.6,3446.7,3.0]
[1736264798105,0.00288,3448.6,3446.5,0.02900326]
[1736264798106,2.90264,3448.6,3447.1,2.90091]
[1736264798308,0.03624869,3448.5,3446.8,2.24914133]
[1736264798526,0.00288,3448.6,3447.2,2.90082]
[1736264798721,0.00288,3448.6,3446.8,0.59304133]
[1736264799438,0.00288,3448.6,3447.7,3.0]
[1736264799661,0.00288,3448.6,3448.2,3.0075]
[1736264799802,1e-05,3448.6,3448.5,3.0075]
[1736264800127,2.89828,3450.4,3449.4,0.0075]
[1736264800294,1.5083,3451.0,3449.4,0.0075]
[1736264800499,4.40602,3451.0,3449.4,0.0075]
[1736264800725,4.40602,3451.0,3449.6,2.89884]
[1736264800726,0.03622505,3450.9,3449.6,2.89884]
[1736264800940,0.03622226,3451.4,3449.7,0.289884]
[1736264801158,2.89693,3452.0,3449.8,0.02897587]
[1736264801440,0.03621651,3452.4,3450.6,0.0075]
[1736264801599,2.89762,3451.2,3448.4,2.89989]
[1736264801795,3.03622043,3450.6,3447.8,0.590053]
[1736264801995,2.90005,3448.3,3446.3,1.5613]
[1736264802302,0.03625198,3448.8,3447.1,2.90094]
[1736264802502,0.03624696,3449.4,3447.2,0.02899756]
[1736264802887,1.5131,3449.9,3448.1,0.0075]
[1736264803138,1.5131,3449.9,3447.1,2.0]
[1736264803139,0.55,3450.3,3448.2,1.5613]
[1736264803353,3.03623449,3450.2,3447.4,2.90067]
[1736264803504,2.89855,3450.0,3447.5,0.446197]
[1736264803700,0.015,3448.7,3446.5,2.90149]
[1736264804029,0.015,3448.7,3446.3,1.5613]
[1736264804030,0.0075,3448.7,3446.3,1.5613]
[1736264804232,1.54934754,3449.9,3446.3,2.14512212]
[1736264804400,1.54934754,3449.9,3446.4,0.27812713]
[1736264804601,1.54934754,3449.9,3447.7,2.90041]
[1736264804602,0.03624016,3449.8,3447.7,2.90041]
[1736264804859,0.1966399,3450.7,3448.3,2.89997]
[1736264804999,0.1966399,3450.7,3449.6,2.89885]
[1736264805199,0.1966399,3450.7,3447.9,2.90026]
[1736264805513,0.1966399,3450.7,3447.7,2.90043]
[1736264805716,0.0075,3449.9,3448.1,4.4502]
[1736264805929,2.89926,3449.2,3448.2,0.43752]
[1736264806129,2.89926,3449.2,3447.0,1.5501]
[1736264806130,0.03624288,3449.1,3446.5,0.38394271]
[1736264806354,2.89947,3448.9,3444.9,1.5753]
[1736264806516,2.9358723,3448.8,3446.6,2.90134]
[1736264806703,0.0362623,3448.8,3445.4,2.90242]
[1736264806909,0.03624923,3449.6,3445.3,2.0]
[1736264807265,0.03624632,3450.5,3446.8,2.0]
[1736264807468,0.40996804,3450.6,3448.4,5.89989]
[1736264807600,0.40996804,3450.6,3448.9,3.0]
[1736264807805,0.1966399,3450.7,3450.5,2.89812]
[1736264808016,0.1966399,3450.7,3448.2,4.47534]
[1736264808229,2.89714,3451.7,3448.5,3.45731]
[1736264808468,1.5209,3452.0,3449.0,3.0]
[1736264808679,0.03621279,3452.6,3450.4,2.8982]
[1736264808971,0.03620769,3452.8,3450.5,0.02805683]
[1736264809152,1.5766,3453.0,3450.5,2.92614683]
[1736264809333,1.5766,3453.0,3450.6,0.44430468]
[1736264809334,0.03620668,3452.9,3450.6,0.44430468]
[1736264809539,0.03620624,3453.6,3450.7,0.02805393]
[1736264809754,0.03620624,3453.6,3450.6,0.44430468]
[1736264809755,2.89555,3453.6,3450.8,2.89787]
[1736264810069,1.57199,3453.9,3450.8,2.89787]
[1736264810070,1.57199,3453.9,3452.3,2.8966]
[1736264810373,0.00289,3453.9,3452.4,0.02802465]
[1736264810647,0.00289,3453.9,3451.2,0.02802232]
[1736264810792,0.23282646,3454.7,3453.1,3.0]
[1736264810991,0.1966399,3454.7,3453.8,2.89534]
[1736264811190,0.1966399,3454.7,3453.0,1.5262]
[1736264811391,0.1966399,3454.7,3451.7,1.6497]
[1736264811392,1.6134,3454.6,3451.7,1.6497]
[1736264811708,0.03618479,3454.5,3451.7,1.6497]
[1736264811929,2.895,3454.3,3451.8,0.454684]
[1736264812242,1.6134,3454.6,3453.7,2.89538]
[1736264812387,0.1966399,3454.7,3453.1,2.0]
[1736264812590,0.1966399,3454.7,3453.3,2.88828]
[1736264812785,0.1966399,3454.7,3454.6,2.89469]
[1736264813046,0.1966399,3454.7,3454.6,0.289469]
[1736264813207,4.40902,3457.5,3454.7,2.8946]
[1736264813543,4.40902,3457.5,3455.3,2.89407]
[1736264813544,2.8928,3456.9,3455.3,2.89407]
[1736264813752,0.03616487,3457.3,3455.4,0.02796319]
[1736264814047,0.4504,3457.4,3455.0,3.0]
[1736264814338,0.4504,3457.4,3456.3,2.89319]
[1736264814556,0.4504,3457.4,3456.4,0.0204448]
[1736264814692,0.4504,3457.4,3455.3,2.89404]
[1736264814693,0.03616019,3457.3,3455.3,2.89404]
[1736264814888,0.4504,3457.4,3455.1,0.745431]
[1736264814889,0.4504,3457.4,3455.5,2.8939]
[1736264815194,0.4504,3457.4,3455.6,0.02045027]
[1736264815420,0.4504,3457.4,3456.0,2.89351]
[1736264815724,0.4504,3457.4,3455.7,0.59143503]
[1736264816039,0.4504,3457.4,3454.9,0.57415351]
[1736264816332,0.4504,3457.4,3455.4,0.55]
[1736264816529,0.4504,3457.4,3456.9,3.0]
[1736264816729,0.4504,3457.4,3457.0,0.02042817]
[1736264816948,3.34276,3457.4,3454.8,1.5599]
[1736264817097,0.0075,3456.9,3455.1,2.8942]
[1736264817433,0.4504,3457.4,3455.7,2.89369]
[1736264817592,3.34276,3457.4,3455.4,2.89398]
[1736264817793,0.4504,3457.4,3454.8,1.5599]
[1736264818014,0.4504,3457.4,3454.9,2.89443]
[1736264818360,0.4504,3457.4,3455.1,2.89427]
[1736264818542,0.50778813,3460.6,3460.2,7.68582802]
[1736264818707,2.89245,3457.3,3455.8,0.25]
[1736264819055,2.89084,3459.2,3455.9,0.02892419]
[1736264819207,0.015,3458.4,3455.7,0.02892471]
[1736264819573,2.89363,3455.9,3455.0,0.49460624]
[1736264819860,3.0,3458.1,3454.2,0.25]
[1736264819861,2.89359,3456.0,3454.2,0.25]
[1736264820062,3.0,3457.3,3454.7,0.2425]
[1736264820063,2.89311,3456.5,3454.7,0.2425]
[1736264820242,2.90846622,3456.9,3455.1,0.2425]
[1736264820441,2.89312,3456.5,3455.3,0.2425]
[1736264820642,0.01570622,3456.4,3454.9,0.2425]
[1736264820974,2.89452,3454.9,3453.8,0.1563]
[1736264821261,2.89452,3454.9,3451.7,1.5998]
[1736264821262,2.8961,3453.0,3451.2,0.25]
[1736264821464,2.8961,3453.0,3451.0,3.14017]
[1736264821465,0.01570622,3452.9,3451.4,0.235]
[1736264821790,0.41797234,3457.3,3451.4,0.235]
[1736264821791,1.54700622,3455.1,3453.7,0.235]
[1736264822080,0.01570622,3455.5,3453.9,0.25]
[1736264822296,0.01570622,3455.0,3453.1,0.235]
[1736264822433,2.8948,3454.5,3453.2,0.235]
[1736264822788,0.01570622,3455.4,3453.9,0.25]
[1736264822926,0.44700622,3456.0,3454.3,2.88743]
[1736264823127,2.8937,3455.8,3454.6,0.235]
[1736264823383,0.44700622,3456.0,3455.1,0.235]
[1736264823533,2.89356,3456.0,3453.2,0.58489964]
[1736264823727,0.02893142,3456.4,3453.0,8.1074152]
[1736264823978,2.89288,3456.8,3454.5,2.89469]
[1736264823979,0.02893142,3456.7,3454.5,2.89469]
[1736264824195,2.89298,3456.7,3454.6,0.0289322]
[1736264824476,0.02893142,3456.6,3453.1,0.81074152]
[1736264824680,6.3574152,3457.4,3453.1,0.81074152]
[1736264824681,0.02893142,3457.3,3453.4,3.0]
[1736264824974,0.02893142,3457.3,3454.2,2.895]
[1736264824975,2.89355,3456.0,3454.2,2.895]
[1736264825276,8.9997752,3457.4,3453.7,3.0]
[1736264825277,2.89209,3457.7,3454.1,2.1253]
[1736264825428,2.89365,3455.9,3454.1,4.47033]
[1736264825769,2.89365,3455.9,3453.7,6.1074152]
[1736264825770,0.03616938,3455.8,3453.5,0.55807872]
[1736264825969,1.5721,3455.7,3453.6,0.01449487]
[1736264826183,1.5721,3455.7,3453.2,0.01449263]
[1736264826393,0.03617373,3455.6,3453.1,0.81074152]
[1736264826680,0.03617373,3455.6,3452.1,1.5928]
[1736264826681,4.628,3454.5,3451.2,1.5928]
[1736264826882,2.89627,3452.8,3450.5,2.8981]
[1736264827184,0.03620544,3453.2,3450.2,7.7002152]
[1736264827363,6.1074152,3453.8,3450.3,0.77012152]
[1736264827364,0.03620996,3453.7,3450.3,0.77012152]
[1736264827675,0.03620996,3453.7,3450.0,0.001]
[1736264827676,9.0034252,3453.1,3450.1,2.89846]
[1736264827891,9.0034252,3453.1,3450.0,0.001]
[1736264827892,2.89632,3452.7,3450.0,0.001]
[1736264828096,0.03621378,3452.6,3450.0,0.001]
[1736264828235,2.89761,3451.2,3450.0,0.001]
[1736264828435,1.628,3451.4,3450.0,0.001]
[1736264828436,2.8984,3450.2,3450.0,0.001]
[1736264828638,3.0,3450.9,3449.1,0.03965]
[1736264828639,2.89877,3449.8,3449.1,0.03965]
[1736264828838,2.89919,3449.3,3449.1,0.03215]
[1736264829036,0.04374049,3449.2,3449.1,0.03215]
[1736264829561,2.90672,3449.2,3449.1,0.03215]
[1736264829764,0.0075,3449.2,3449.1,0.03215]
[1736264830163,0.0075,3449.2,3447.0,1.5928]
[1736264830491,2.90114,3447.0,3446.8,1.160047]
[1736264830692,0.03626441,3446.9,3445.8,0.30147388]
[1736264831002,0.03627113,3447.8,3446.1,2.90178]
[1736264831206,2.90039,3447.9,3446.2,0.290178]
[1736264831387,2.90039,3447.9,3446.2,35.0]
[1736264831587,2.90039,3447.9,3444.9,2.90283]
[1736264831588,2.899,3449.5,3446.7,0.0075]
[1736264831792,2.899,3449.5,3446.6,1.5553]
[1736264831793,0.03623984,3449.4,3446.6,1.5478]
[1736264832095,0.03625097,3450.1,3446.6,1.5478]
[1736264832308,2.90119,3446.9,3445.2,2.90257]
[1736264832610,2.90119,3446.9,3445.0,6.1074152]
[1736264832611,0.0075,3446.7,3445.3,0.90099852]
[1736264832751,0.0075,3446.7,3445.3,35.0]
[1736264833032,1.6428,3448.5,3445.1,6.1074152]
[1736264833345,2.90051,3447.7,3445.5,2.90233]
[1736264833547,0.0075,3447.6,3445.8,6.1074152]
[1736264833872,0.0075,3447.6,3445.2,0.5924743]
[1736264833873,2.89934,3449.1,3447.6,0.0075]
[1736264834031,1.5009,3449.4,3449.0,35.0]
[1736264834235,1.5009,3449.4,3446.5,6.67741694]
[1736264834236,0.03623983,3449.3,3446.5,6.1074152]
[1736264834576,0.03623983,3449.3,3445.8,6.1074152]
[1736264834777,2.90002,3448.3,3446.1,2.90183]
[1736264835075,0.03625461,3448.2,3446.4,2.90152]
[1736264835244,2.90078,3447.4,3446.1,35.0]
[1736264835434,0.03626623,3448.6,3446.0,0.67181567]
[1736264835639,0.03626623,3448.6,3444.5,2.59241623]
[1736264835640,6.1074152,3447.4,3444.0,1.5132]
[1736264835832,6.1074152,3446.7,3444.0,1.5132]
[1736264836085,2.93776493,3446.6,3444.0,1.5132]
[1736264836285,2.93733516,3447.1,3445.4,2.9024]
[1736264836490,2.9002,3448.1,3445.0,35.0]
[1736264836491,2.9015,3446.5,3445.0,35.0]
[1736264836779,4.46565,3447.9,3446.3,2.90161]
[1736264837086,1.5653,3447.9,3445.5,6.10396753]
[1736264837247,2.90053,3447.7,3447.6,35.0]
[1736264837446,1.98285648,3448.9,3447.6,35.0]
[1736264837647,2.90026,3448.0,3445.3,2.90248]
[1736264837881,2.90073,3447.4,3445.1,1.6498]
[1736264838035,0.03627228,3447.3,3445.1,1.6498]
[1736264838412,8.09027168,3448.9,3443.5,36.6498]
[1736264838413,6.1074152,3445.6,3443.5,36.6498]
[1736264838542,0.0362828,3445.5,3443.5,36.6498]
[1736264838891,6.1074152,3446.3,3443.5,36.6498]
[1736264839176,2.90212,3445.8,3443.5,4.55379]
[1736264839377,0.03628051,3445.7,3443.5,1.6498]
[1736264839576,0.03628308,3446.2,3444.7,2.90295]
[1736264839880,6.1074152,3447.0,3445.2,0.0075]
[1736264840087,6.1074152,3447.7,3445.4,0.5575]
[1736264840287,1.5743,3448.2,3446.8,2.90118]
[1736264840586,6.1074152,3447.6,3444.4,1.5342]
[1736264840757,6.1074152,3446.9,3444.4,1.5342]
[1736264841084,1.5743,3448.2,3444.9,3.0]
[1736264841252,6.1074152,3449.0,3444.9,3.82314496]
[1736264841580,6.1074152,3449.0,3444.8,8.1074152]
[1736264841581,6.1074152,3448.3,3447.3,35.0]
[1736264841752,2.90014,3448.1,3445.8,2.90206]
[1736264841957,2.90031,3447.9,3445.6,2.90218]
[1736264842158,0.03626959,3447.8,3445.0,2.90275]
[1736264842350,2.90034,3447.9,3445.2,3.0]
[1736264842567,0.03626205,3447.8,3446.7,2.90129]
[1736264842881,2.90025,3448.0,3446.7,1.5401]
[1736264843081,0.03626246,3447.9,3446.1,35.0]
[1736264843284,2.90166,3446.3,3444.4,2.90326]
[1736264843578,6.1074152,3445.9,3443.3,1.5401]
[1736264843766,0.03628248,3445.8,3443.8,3.0]
[1736264843938,0.03628248,3445.8,3443.3,1.5401]
[1736264843939,2.90216,3445.7,3443.3,1.5401]
[1736264844135,2.9026,3445.2,3443.1,2.90428]
[1736264844335,0.03629545,3445.6,3443.3,2.90418]
[1736264844577,0.03627939,3446.5,3444.5,0.0075]
[1736264844780,0.03627473,3446.7,3444.6,0.18611174]
[1736264844937,1.410945,3448.4,3443.5,6.1074152]
[1736264844938,1.5222,3446.4,3443.6,35.0]
[1736264845140,0.03628415,3446.3,3443.6,35.0]
[1736264845337,1.5222,3447.3,3443.7,9.3574152]
[1736264845536,2.90175,3446.2,3444.4,2.90326]
[1736264845783,0.03627548,3446.1,3444.5,0.31413774]
[1736264846080,1.5222,3447.3,3444.7,2.90296]
[1736264846081,0.03626786,3446.8,3444.7,2.90296]
[1736264846281,2.93721264,3447.2,3445.7,2.90212]
[1736264846458,1.5222,3447.3,3445.5,0.0075]
[1736264846653,0.03627032,3447.7,3445.0,3.0]
[1736264846654,0.03627032,3447.7,3446.2,2.90171]
[1736264846876,1.5636,3448.3,3446.4,35.0]
[1736264847039,1.153373,3448.7,3448.6,0.0075]
[1736264847241,1.5636,3450.4,3448.6,0.0075]
[1736264847440,0.58499712,3450.7,3448.1,3.0]
[1736264847679,1.160028,3451.3,3449.9,1.6407]
[1736264848082,1.09668978,3451.7,3451.5,2.89725]
[1736264848227,1.09668978,3451.7,3450.2,6.1074152]
[1736264848452,1.09668978,3451.7,3451.6,3.0]
[1736264848929,1.09668978,3451.7,3451.6,38.0]
[1736264848930,1.08918978,3451.7,3451.6,38.0]
[1736264849089,1.08918978,3451.7,3451.6,40.8686894]
[1736264849715,1.08918978,3451.7,3451.6,0.0075]
[1736264850588,1.08918978,3451.7,3448.9,1.6521]
[1736264850815,5.79524,3451.1,3448.3,2.89996]
[1736264851028,0.03623654,3451.0,3448.0,1.6521]
[1736264851328,6.14364824,3451.3,3448.0,1.6521]
[1736264851529,6.1074152,3451.3,3448.1,0.16521]
[1736264851934,3.98635978,3451.7,3449.4,2.89904]
[1736264851935,2.89773,3451.0,3449.4,2.89904]
[1736264852154,1.08918978,3451.7,3448.1,0.16521]
[1736264852155,0.03622177,3450.9,3448.7,0.55]
[1736264852443,0.03622177,3450.9,3448.1,0.16521]
[1736264852444,6.1074152,3450.7,3448.1,0.16521]
[1736264852644,6.1074152,3451.4,3448.7,2.89964]
[1736264852947,2.8973,3451.5,3449.4,0.55]
[1736264853110,2.93316997,3451.9,3449.9,2.90612]
[1736264853312,0.03621997,3451.8,3450.0,0.0075]
[1736264853553,0.03621387,3453.4,3452.0,3.0]
[1736264853862,6.1074152,3452.7,3450.1,1.159049]
[1736264854007,5.79524,3451.1,3450.1,1.159049]
[1736264854208,9.0055052,3450.6,3449.0,0.5863317]
[1736264854411,6.1074152,3450.0,3449.0,0.5863317]
[1736264854653,1.5513,3451.0,3447.4,1.5843]
[1736264854654,0.03623905,3449.9,3447.4,1.5843]
[1736264854942,0.03623699,3450.6,3447.9,0.5575]
[1736264855244,0.03622731,3450.9,3448.0,0.34579]
[1736264855543,1.5513,3451.0,3448.3,5.0]
[1736264855748,1.67242209,3452.1,3448.9,6.1074152]
[1736264856046,1.67242209,3452.1,3448.9,2.89943]
[1736264856047,2.89797,3450.7,3448.9,2.89943]
[1736264856196,0.03623535,3450.6,3448.9,0.441543]
[1736264856396,6.1074152,3451.8,3450.5,2.8981]
[1736264856709,0.03621803,3451.7,3448.9,0.441543]
[1736264856929,0.0362222,3452.0,3449.4,3.0]
[1736264857110,0.0362222,3452.0,3450.3,0.0075]
[1736264857309,12.47728292,3453.7,3450.1,2.89842]
[1736264857651,6.1074152,3451.3,3447.0,6.1074152]
[1736264857943,0.0362159,3452.0,3446.0,2.90191]
[1736264857944,6.1074152,3449.5,3446.0,2.90191]
[1736264858161,1.6122,3451.5,3447.4,6.1074152]
[1736264858308,2.89748,3451.3,3448.4,2.89989]
[1736264858520,6.1074152,3450.5,3447.8,2.90037]
[1736264858696,0.0362422,3450.4,3448.0,2.90023]
[1736264858892,2.89829,3450.3,3447.9,0.290037]
[1736264859095,2.89871,3449.8,3448.2,2.90004]
[1736264859300,1.6295,3449.6,3446.3,1.6218]
[1736264859614,1.6295,3447.7,3445.3,1.6218]
[1736264859835,0.03626365,3447.6,3445.5,1.160634]
[1736264860000,0.03626365,3447.6,3444.4,1.6218]
[1736264860189,0.03626569,3447.7,3445.0,16.8156652]
[1736264860390,0.03625613,3448.5,3445.0,8.1074152]
[1736264860651,0.03625427,3449.2,3448.8,2.8995]
[1736264860808,1.6328,3449.6,3446.0,1.67738479]
[1736264860809,0.0362382,3449.5,3446.5,9.0088352]
[1736264861013,0.0362382,3449.5,3447.7,2.90041]
[1736264861195,1.6328,3449.6,3447.2,0.5575]
[1736264861397,1.6328,3449.6,3448.4,3.0075]
[1736264861708,6.1074152,3451.4,3448.0,3.0]
[1736264861709,0.14295681,3449.8,3448.9,2.89945]
[1736264861911,6.81e-06,3449.8,3449.7,3.0]
[1736264862248,6.81e-06,3449.8,3449.6,2.89883]
[1736264862464,6.81e-06,3449.8,3449.7,3.5575]
[1736264862744,9.22,3454.1,3449.7,3.5575]
[1736264862745,2.89579,3453.3,3451.9,2.89691]
[1736264862958,0.03620346,3453.2,3451.9,2.89691]
[1736264863110,2.89579,3453.3,3451.5,2.89729]
[1736264863111,0.0362035,3453.3,3451.5,2.89729]
[1736264863341,0.0362035,3453.3,3451.0,2.89768]
[1736264863595,0.0362035,3453.3,3451.7,2.89705]
[1736264863741,1.6328,3453.4,3451.8,0.289705]
[1736264863938,1.6328,3453.4,3450.3,6.1074152]
[1736264863939,0.03620109,3453.3,3451.5,2.89722]
[1736264864272,2.93199109,3453.3,3450.0,2.89855]
[1736264864573,0.03619873,3453.3,3452.6,2.89634]
[1736264864890,1.5002,3454.3,3452.0,2.8968]
[1736264865171,1.5002,3454.3,3452.2,0.5575]
[1736264865172,0.03619492,3454.2,3452.2,0.5575]
[1736264865336,0.03619253,3454.2,3453.1,0.0075]
[1736264865531,6.1074152,3453.7,3450.3,2.89822]
[1736264865767,6.1074152,3453.7,3449.8,1.6356]
[1736264865768,1.6291118,3453.6,3449.8,1.6356]
[1736264866079,1.6291118,3453.6,3450.1,0.55]
[1736264866371,1.6291118,3453.6,3450.9,3.0]
[1736264866536,1.5929,3453.6,3452.3,2.89654]
[1736264866716,1.5929,3453.6,3451.1,6.1074152]
[1736264866948,0.03619573,3453.5,3452.1,2.89678]
[1736264867147,6.1074152,3453.0,3450.3,2.89826]
[1736264867345,0.03621808,3452.9,3449.9,0.83886482]
[1736264867558,2.89686,3452.1,3450.2,2.89838]
[1736264867758,0.03621482,3452.0,3449.9,0.83886482]
[1736264867988,2.89652,3452.5,3449.9,0.83886482]
[1736264868208,2.897,3451.9,3450.4,2.89819]
[1736264868350,0.03621831,3452.2,3450.7,2.89788]
[1736264868693,2.8969,3452.0,3449.2,2.89919]
[1736264868893,0.03621497,3452.2,3449.8,3.55]
[1736264869050,0.39559716,3453.5,3452.2,2.8967]
[1736264869051,0.03620573,3453.4,3452.2,2.8967]
[1736264869250,0.39559716,3453.5,3453.0,0.015]
[1736264869494,2.89588,3453.2,3453.0,0.015]
[1736264869655,0.03620737,3453.1,3452.1,0.015]
[1736264869987,0.03620737,3453.1,3452.0,0.00822266]
[1736264869988,1.5597,3454.0,3452.7,0.0075]
[1736264870294,1.5597,3454.0,3452.1,5.0]
[1736264870609,0.93708879,3454.7,3452.3,3.5964]
[1736264870785,0.03618517,3454.6,3452.2,0.50082227]
[1736264871146,2.89452,3454.8,3452.2,0.50082227]